bitfinex/quotes_ETHUSD_20251201
["timestamp","ask_amount","ask_price","bid_price","bid_amount"]
[1764591319951,0.002,2825.6,2825.1,0.532]
[1764591320954,0.002,2825.6,2825.5,0.4585]
[1764591321132,0.002,2825.6,2825.5,3.7661966]
[1764591321336,0.903904,2825.6,2825.5,3.7661966]
[1764591322557,0.407504,2825.6,2825.5,3.7661966]
[1764591322859,0.407504,2825.6,2825.5,4.49674673]
[1764591322860,0.002,2825.6,2825.5,4.49674673]
[1764591323154,0.002,2825.6,2825.5,4.95524673]
[1764591323354,0.002,2825.6,2825.5,3.5391966]
[1764591323355,0.4639,2825.6,2825.5,3.5391966]
[1764591323528,0.9147,2825.6,2825.5,3.7661966]
[1764591324558,0.9147,2825.6,2825.0,1.0846469]
[1764591324559,0.405504,2825.5,2825.3,7.07889426]
[1764591324855,1.023104,2825.5,2825.3,7.30589426]
[1764591325052,0.4589,2825.4,2825.3,3.76644713]
[1764591325259,0.407504,2825.6,2825.3,7.30589426]
[1764591325458,0.858304,2825.6,2825.3,7.30589426]
[1764591325648,0.4619,2825.4,2825.3,3.76644713]
[1764591326024,0.002,2825.6,2825.3,8.8554623]
[1764591326229,0.4528,2825.6,2825.3,8.8554623]
[1764591326430,0.4619,2825.4,2825.3,4.85101517]
[1764591326754,0.4619,2825.4,2825.3,3.53944713]
[1764591326935,1.318204,2825.4,2825.3,3.76644713]
[1764591327444,1.317404,2825.4,2825.3,3.76644713]
[1764591328554,0.866604,2825.4,2825.3,3.76644713]
[1764591328770,0.405504,2825.4,2825.3,3.76644713]
[1764591328959,0.874604,2825.4,2825.3,3.76644713]
[1764591329963,0.002,2825.6,2825.3,8.8695623]
[1764591330164,0.002,2825.6,2825.5,0.4791]
[1764591330337,0.002,2825.6,2825.3,8.3904623]
[1764591331149,0.002,2825.6,2825.5,0.4791]
[1764591331556,0.002,2825.6,2825.5,0.9678]
[1764591331757,0.002,2825.6,2825.5,1.90362623]
[1764591331952,0.002,2825.6,2825.5,1.41492623]
[1764591332147,0.002,2825.6,2825.5,0.93582623]
[1764591332351,0.002,2825.6,2825.5,1.41492623]
[1764591332861,0.002,2825.6,2825.5,4.95412283]
[1764591334361,0.876604,2825.6,2825.5,4.47502283]
[1764591334572,0.876604,2825.6,2825.5,4.70202283]
[1764591335241,0.876604,2825.6,2825.5,4.47502283]
[1764591335442,0.876604,2825.6,2825.5,3.7661966]
[1764591336467,1.332904,2825.6,2825.5,3.5391966]
[1764591337065,0.50540193,2825.5,2824.9,3.53994831]
[1764591337241,1.10450193,2825.5,2825.2,0.227]
[1764591337440,1.10450193,2825.5,2824.9,3.53994831]
[1764591337640,1.10450193,2825.5,2825.0,0.227]
[1764591337641,0.405504,2825.3,2825.0,0.227]
[1764591338269,0.407504,2825.6,2825.2,0.4791]
[1764591338564,0.407504,2825.6,2825.4,0.4791]
[1764591338763,0.407504,2825.6,2825.5,0.227]
[1764591338964,0.407504,2825.6,2825.5,3.7661966]
[1764591339150,0.407504,2825.6,2825.5,4.97584684]
[1764591340058,0.002,2825.6,2825.5,5.46454684]
[1764591340452,0.002,2825.6,2825.5,4.97584684]
[1764591341569,0.002,2825.6,2825.5,5.46454684]
[1764591342650,0.002,2825.6,2825.5,6.19014095]
[1764591347079,0.4563,2826.9,2826.3,0.4791]
[1764591347273,0.1937,2828.0,2826.4,10.84120886]
[1764591347274,0.72559411,2827.5,2826.4,10.84120886]
[1764591347584,0.1937,2828.0,2826.4,10.84120886]
[1764591347585,0.19979587,2827.3,2826.4,10.84120886]
[1764591347957,0.19979587,2827.3,2826.4,14.37927848]
[1764591348284,0.09989793,2827.5,2826.4,15.88482633]
[1764591348482,0.09989793,2827.5,2826.4,16.37352633]
[1764591348683,0.09989793,2827.5,2826.5,0.4887]
[1764591348886,0.002,2827.7,2826.5,1.21429411]
[1764591349184,0.002,2827.7,2826.7,0.72559411]
[1764591349375,0.002,2827.7,2826.8,14.37727592]
[1764591349571,0.002,2827.7,2826.8,14.86597592]
[1764591349775,0.002,2827.7,2826.9,0.4887]
[1764591349967,0.405504,2827.6,2826.9,1.6941001]
[1764591350365,0.002,2827.7,2827.0,0.4887]
[1764591350559,0.0012,2827.7,2827.0,0.4887]
[1764591350888,0.0012,2827.7,2827.1,0.1994]
[1764591350889,0.406704,2827.7,2827.1,0.1994]
[1764591351085,0.406704,2827.7,2827.2,0.227]
[1764591351086,0.0012,2827.7,2827.2,0.227]
[1764591351385,0.0012,2827.7,2827.3,10.83783011]
[1764591351686,0.4519,2827.7,2827.3,7.07388674]
[1764591351886,0.405504,2827.6,2827.4,0.227]
[1764591352385,0.856204,2827.5,2827.4,0.227]
[1764591352854,0.856204,2827.5,2827.3,3.53694337]
[1764591352855,0.405504,2827.4,2827.3,3.53694337]
[1764591353059,0.405504,2827.4,2827.3,3.76394337]
[1764591353362,0.0012,2827.7,2827.3,12.5098304]
[1764591353558,0.0012,2827.7,2827.4,0.4673]
[1764591353759,0.0012,2827.7,2827.4,0.9419]
[1764591354288,0.0012,2827.7,2827.6,0.4673]
[1764591354484,0.0012,2827.7,2827.3,11.5679304]
[1764591355076,0.0012,2827.7,2827.4,0.227]
[1764591355260,0.0012,2827.7,2827.3,3.53694337]
[1764591355586,0.0012,2827.7,2827.4,0.227]
[1764591357693,0.0012,2827.7,2827.5,7.07338638]
[1764591358675,0.0012,2827.7,2827.6,0.9419]
[1764591358990,0.0012,2827.7,2827.6,1.76612864]
[1764591359476,0.0012,2827.7,2827.6,5.30269675]
[1764591360080,0.0012,2827.7,2827.6,3.76356811]
[1764591360280,0.857404,2827.7,2827.6,3.76356811]
[1764591360790,0.857404,2827.7,2827.6,3.53656811]
[1764591361314,0.857404,2827.7,2827.6,3.76356811]
[1764591361494,0.406704,2827.7,2827.6,4.23086811]
[1764591361797,0.406704,2827.7,2827.6,4.70546811]
[1764591362091,0.0012,2827.7,2827.6,5.52968424]
[1764591363165,0.0012,2827.7,2827.6,6.25527835]
[1764591363706,0.0012,2827.7,2827.6,4.58778424]
[1764591363865,0.0012,2827.7,2827.6,3.76356811]
[1764591364265,0.0012,2827.7,2827.6,3.53656811]
[1764591364476,0.0012,2827.7,2827.6,4.23086811]
[1764591365193,0.0012,2827.7,2827.6,4.70546811]
[1764591366485,0.0012,2827.7,2827.6,5.43106222]
[1764591366791,0.0012,2827.7,2827.6,7.14907874]
[1764591369578,0.0012,2827.7,2827.6,7.06054874]
[1764591369776,0.0012,2827.7,2827.6,6.97190874]
[1764591370402,0.0012,2827.7,2827.6,6.74490874]
[1764591370589,0.0012,2827.7,2827.6,4.55229222]
[1764591370768,0.0995,2827.7,2827.6,4.31199222]
[1764591370976,0.0995,2827.7,2827.6,3.58639811]
[1764591371206,0.0012,2827.7,2827.6,3.58639811]
[1764591371374,0.0012,2827.7,2827.6,4.05369811]
[1764591371776,0.0012,2827.7,2827.6,3.58639811]
[1764591372803,0.0995,2827.7,2827.6,3.35939811]
[1764591373005,0.505004,2827.7,2827.6,3.58639811]
[1764591373603,0.504204,2827.7,2827.6,3.58639811]
[1764591374301,0.504204,2827.7,2827.6,3.35939811]
[1764591374601,0.951404,2827.7,2827.6,3.35939811]
[1764591374989,0.951404,2827.7,2827.6,3.58639811]
[1764591375392,0.405504,2827.6,2827.5,0.001]
[1764591375595,0.856204,2827.6,2827.5,0.001]
[1764591375796,0.954504,2827.6,2827.5,0.001]
[1764591377109,1.94379479,2827.6,2827.5,0.001]
[1764591377285,5.4803629,2827.6,2827.5,0.001]
[1764591377490,1.94379479,2827.6,2827.5,0.001]
[1764591378882,2.14359066,2827.6,2827.5,0.001]
[1764591379089,0.0983,2827.6,2827.5,0.001]
[1764591381316,0.951004,2827.6,2827.5,0.001]
[1764591382002,1.05090193,2827.6,2827.5,0.001]
[1764591383018,0.951004,2827.6,2827.5,0.001]
[1764591386190,0.503804,2827.6,2827.5,0.001]
[1764591386387,0.951004,2827.6,2827.5,0.001]
[1764591387124,1.43492973,2827.6,2827.5,0.001]
[1764591387348,0.98772973,2827.6,2827.5,0.001]
[1764591387487,21.71350264,2827.6,2827.5,0.001]
[1764591387690,21.09795883,2827.6,2827.5,0.001]
[1764591388326,12.88554901,2827.6,2827.5,0.001]
[1764591388532,19.84998801,2827.6,2827.5,0.001]
[1764591388900,6.96041401,2827.6,2827.5,0.001]
[1764591389133,24.45591801,2827.6,2827.5,0.001]
[1764591389632,17.08398801,2827.6,2827.5,0.001]
[1764591390531,20.01517201,2827.6,2827.5,0.001]
[1764591390742,9.91929101,2827.6,2827.5,0.001]
[1764591390906,5.89688782,2827.6,2827.5,0.001]
[1764591391101,6.03868226,2827.6,2827.5,0.001]
[1764591392397,12.05672585,2827.6,2827.5,0.001]
[1764591393234,0.0983,2827.6,2827.5,0.001]
[1764591393652,0.0004,2827.7,2827.5,0.5]
[1764591394003,0.0004,2827.7,2827.6,0.499]
[1764591394211,0.0004,2827.7,2827.5,0.001]
[1764591394413,0.4507,2827.6,2827.5,0.001]
[1764591394933,0.405504,2827.6,2827.5,0.001]
[1764591395140,0.405504,2827.6,2827.5,0.955]
[1764591395342,0.0004,2827.7,2827.5,1.182]
[1764591395506,0.0004,2827.7,2827.6,0.954]
[1764591396305,0.405904,2827.7,2827.6,0.954]
[1764591396609,0.405104,2827.7,2827.6,0.954]
[1764591396802,0.002,2827.9,2827.6,0.954]
[1764591397201,0.002,2827.9,2827.7,7.07288608]
[1764591397401,0.002,2827.9,2827.7,7.89837469]
[1764591397611,0.002,2827.9,2827.8,0.499]
[1764591398322,0.002,2827.9,2827.8,0.954]
[1764591399218,0.002,2827.9,2827.8,4.49031798]
[1764591399413,0.002,2827.9,2827.8,4.03531798]
[1764591399620,0.002,2827.9,2827.8,4.87504294]
[1764591399926,0.1003,2827.9,2827.8,3.53631798]
[1764591401318,0.002,2827.9,2827.8,0.499]
[1764591401524,0.002,2827.9,2827.8,0.954]
[1764591403317,0.002,2827.9,2827.8,4.49031798]
[1764591407537,0.002,2827.9,2827.8,4.03531798]
[1764591407849,0.002,2827.9,2827.8,5.24749295]
[1764591411356,0.002,2827.9,2827.8,5.47349295]
[1764591411854,0.002,2827.9,2827.8,6.19908706]
[1764591419671,0.0012,2827.9,2827.8,6.19908706]
[1764591420363,0.0012,2827.9,2827.8,6.20688706]
[1764591420950,0.0008,2828.0,2827.8,9.74320504]
[1764591421162,0.002,2828.2,2827.9,2.25866367]
[1764591421343,1e-08,2828.3,2828.1,0.1953]
[1764591421674,1e-08,2828.3,2828.2,4.95531194]
[1764591421839,1e-08,2828.3,2828.2,5.41811194]
[1764591422167,1e-08,2828.3,2828.2,5.19211194]
[1764591422368,1e-08,2828.3,2828.2,7.1863808]
[1764591426080,1e-08,2828.3,2828.2,6.9603808]
[1764591426260,1e-08,2828.3,2828.2,3.53581783]
[1764591426468,1e-08,2828.3,2828.2,3.76181783]
[1764591426648,0.09520001,2828.3,2828.2,3.76181783]
[1764591426848,0.09520001,2828.3,2828.2,4.48741194]
[1764591427472,0.09520001,2828.3,2828.2,3.76181783]
[1764591429183,0.09520001,2828.3,2828.2,3.53581783]
[1764591429369,0.09520001,2828.3,2828.2,3.76181783]
[1764591429370,0.95100401,2828.3,2828.2,3.76181783]
[1764591430193,0.405504,2828.2,2828.1,0.226]
[1764591430350,0.954604,2828.2,2828.1,0.226]
[1764591430676,0.954604,2828.2,2828.0,7.07210218]
[1764591430677,0.954604,2828.2,2828.0,0.226]
[1764591430877,0.954604,2828.1,2828.0,0.226]
[1764591431258,0.954604,2828.1,2828.0,3.76206789]
[1764591431975,0.405504,2828.0,2827.6,0.001]
[1764591432175,0.859404,2828.0,2827.7,3.76239928]
[1764591432376,0.859404,2828.0,2827.7,7.29884232]
[1764591432548,1e-08,2828.3,2827.7,3.76239928]
[1764591432549,0.859404,2827.8,2827.7,3.76239928]
[1764591432949,1.050404,2827.8,2827.7,3.76239928]
[1764591434258,8.38831611,2827.7,2827.6,0.001]
[1764591434463,10.9180941,2827.7,2827.6,0.001]
[1764591434782,11.26942269,2827.7,2827.6,0.001]
[1764591435181,11.26942269,2827.7,2827.5,0.001]
[1764591435182,20.51150175,2827.7,2827.5,0.001]
[1764591435480,30.9047751,2827.6,2827.5,0.001]
[1764591435656,42.19961935,2827.6,2827.5,0.001]
[1764591435856,31.48549811,2827.5,2827.4,0.001]
[1764591436079,33.6738571,2827.5,2827.3,0.001]
[1764591436279,33.33235503,2827.4,2827.3,0.001]
[1764591437379,0.72559411,2827.3,2827.1,0.001]
[1764591437552,4.09263473,2827.3,2827.1,0.001]
[1764591437748,6.94301877,2827.3,2827.1,0.001]
[1764591437959,4.68783198,2827.3,2827.1,0.001]
[1764591438164,8.22477535,2827.3,2827.1,0.001]
[1764591438365,10.25877535,2827.3,2827.1,0.001]
[1764591438563,10.25761335,2827.3,2827.1,0.001]
[1764591438763,11.30597469,2827.3,2827.1,0.001]
[1764591440204,11.10617882,2827.3,2827.1,0.001]
[1764591440359,11.20607675,2827.3,2827.1,0.001]
[1764591440687,11.37658475,2827.3,2827.1,0.001]
[1764591441787,11.76108475,2827.3,2827.1,0.001]
[1764591442096,0.0907,2827.3,2827.1,0.001]
[1764591442267,0.0968,2827.9,2827.1,0.001]
[1764591442583,0.0952,2827.3,2827.1,0.001]
[1764591442789,0.0944,2827.3,2827.1,0.001]
[1764591442984,0.950204,2827.3,2827.1,0.001]
[1764591444790,0.499904,2827.3,2827.1,0.001]
[1764591445361,15.2734313,2827.3,2827.1,0.001]
[1764591445585,18.75598648,2827.3,2827.1,0.001]
[1764591445784,15.76381448,2827.3,2827.1,0.001]
[1764591446186,16.11821448,2827.3,2827.1,0.001]
[1764591446398,3.98245918,2827.3,2827.1,0.001]
[1764591446596,3.312904,2827.3,2827.1,0.001]
[1764591446894,3.86310193,2827.3,2827.1,0.001]
[1764591447400,7.4020453,2827.3,2827.1,0.001]
[1764591447708,8.12763941,2827.3,2827.1,0.001]
[1764591448013,9.31668648,2827.3,2827.1,0.001]
[1764591448189,1.48549811,2827.2,2827.1,0.001]
[1764591448389,13.89979398,2827.2,2827.1,0.001]
[1764591448605,14.62204423,2827.2,2827.1,0.001]
[1764591448806,17.31417602,2827.2,2827.1,0.001]
[1764591449397,27.37378902,2827.2,2827.1,0.001]
[1764591449801,25.99366902,2827.2,2827.1,0.001]
[1764591449998,19.73041124,2827.2,2827.1,0.001]
[1764591450206,19.95641124,2827.2,2827.1,0.001]
[1764591450405,25.60428824,2827.2,2827.1,0.001]
[1764591450582,25.06994924,2827.2,2827.1,0.001]
[1764591450789,13.55868424,2827.2,2827.1,0.001]
[1764591450992,7.48832366,2827.2,2827.1,0.001]
[1764591451182,7.94645851,2827.2,2827.1,0.001]
[1764591451385,4.10099204,2827.2,2827.1,0.001]
[1764591451580,7.63806051,2827.2,2827.1,0.001]
[1764591451998,3.87499204,2827.2,2827.1,0.001]
[1764591452192,4.10099204,2827.2,2827.1,0.001]
[1764591452492,2.75211601,2827.2,2827.1,0.001]
[1764591452692,3.91300404,2827.2,2827.1,0.001]
[1764591452898,1.59899204,2827.2,2827.1,0.001]
[1764591453109,2.00449604,2827.2,2827.1,0.001]
[1764591453510,5.54156451,2827.2,2827.1,0.001]
[1764591454119,5.31556451,2827.2,2827.1,0.001]
[1764591454296,6.46244534,2827.2,2827.1,0.001]
[1764591455017,21.02490134,2827.2,2827.1,0.001]
[1764591455186,19.96750134,2827.2,2827.1,0.001]
[1764591455392,19.18386934,2827.2,2827.1,0.001]
[1764591455822,13.15513634,2827.2,2827.1,0.001]
[1764591456210,11.15633428,2827.2,2827.1,0.001]
[1764591456519,36.91314328,2827.2,2827.1,0.001]
[1764591456821,21.15345028,2827.2,2827.1,0.001]
[1764591457218,10.30334328,2827.2,2827.1,0.001]
[1764591457391,25.01475428,2827.2,2827.1,0.001]
[1764591457721,21.61757028,2827.2,2827.1,0.001]
[1764591457922,21.01594228,2827.2,2827.1,0.001]
[1764591458422,21.01630028,2827.2,2827.1,0.001]
[1764591459409,21.01323628,2827.2,2827.1,0.001]
[1764591460395,20.91323628,2827.2,2827.1,0.001]
[1764591461423,6.91314328,2827.2,2827.1,0.001]
[1764591461619,2.50077894,2827.2,2827.1,0.001]
[1764591461827,2.72677894,2827.2,2827.1,0.001]
[1764591462026,1.45149811,2827.2,2827.1,0.001]
[1764591462393,0.20179587,2827.3,2827.1,0.4985]
[1764591462593,0.20179587,2827.3,2827.1,0.001]
[1764591462794,0.59980193,2827.2,2827.1,0.001]
[1764591463632,0.82580193,2827.2,2827.1,0.001]
[1764591464393,1.69835573,2827.2,2827.1,0.001]
[1764591464595,5.2354242,2827.2,2827.1,0.001]
[1764591464796,1.69835573,2827.2,2827.1,0.001]
[1764591465833,1.69755573,2827.2,2827.1,0.001]
[1764591466325,2.05195573,2827.2,2827.1,0.001]
[1764591466629,1.82595573,2827.2,2827.1,0.001]
[1764591466825,0.86100193,2827.2,2827.1,0.001]
[1764591467127,1.08700193,2827.2,2827.1,0.6963]
[1764591467300,1.08700193,2827.2,2827.1,0.4985]
[1764591469238,0.761104,2827.2,2827.1,4.03569359]
[1764591469417,0.761104,2827.2,2827.1,4.71119359]
[1764591469800,0.761104,2827.2,2827.1,0.6963]
[1764591470033,0.86100193,2827.2,2827.1,0.6963]
[1764591470220,0.86100193,2827.2,2827.1,0.4985]
[1764591470407,0.95540193,2827.2,2827.1,0.001]
[1764591471634,4.4924704,2827.2,2827.1,0.001]
[1764591471939,5.03707685,2827.2,2827.1,0.001]
[1764591472107,1.50000838,2827.2,2827.1,0.001]
[1764591473819,1.50000838,2827.2,2827.1,1.1523]
[1764591473820,0.002,2827.2,2827.1,1.1523]
[1764591476011,0.002,2827.2,2827.1,4.68949359]
[1764591476733,0.002,2827.2,2827.1,5.6410877]
[1764591480608,0.002,2827.5,2827.2,1.68889411]
[1764591480936,0.002,2827.5,2827.4,0.4939]
[1764591481302,0.002,2827.5,2827.4,0.9633]
[1764591482134,0.002,2827.5,2827.2,1.73950753]
[1764591482331,0.002,2827.5,2827.1,7.48938718]
[1764591482536,0.002,2827.5,2827.1,7.26338718]
[1764591482734,0.405504,2827.4,2827.1,0.001]
[1764591483339,0.405504,2827.4,2827.1,7.07535193]
[1764591484131,0.405504,2827.4,2827.1,3.53815834]
[1764591484445,0.405504,2827.4,2827.1,0.001]
[1764591487444,0.89265078,2827.4,2827.1,0.001]
[1764591488044,0.405504,2827.4,2827.1,0.001]
[1764591488849,0.404704,2827.4,2827.1,0.001]
[1764591489757,0.50460193,2827.4,2827.1,0.001]
[1764591489952,0.50460193,2827.4,2827.1,0.189]
[1764591490158,0.002,2827.5,2827.1,0.6584]
[1764591490360,0.002,2827.5,2827.4,0.4939]
[1764591490858,0.002,2827.5,2827.4,4.50011827]
[1764591492530,0.002,2827.5,2827.4,4.72611827]
[1764591494132,0.002,2827.5,2827.4,4.25671827]
[1764591494329,0.002,2827.5,2827.4,4.72611827]
[1764591494533,0.002,2827.5,2827.4,5.55242305]
[1764591496076,0.002,2827.8,2827.5,0.72559411]
[1764591496371,0.002,2827.8,2827.7,0.4939]
[1764591496598,0.002,2827.8,2827.7,0.9633]
[1764591496759,0.002,2828.9,2827.7,0.9633]
[1764591497076,0.002,2828.9,2828.0,4.755562]
[1764591497285,0.405504,2828.8,2828.0,5.65427612]
[1764591497464,0.405504,2828.8,2828.0,6.12367612]
[1764591497795,0.002,2828.9,2828.0,6.12367612]
[1764591500687,0.002,2828.4,2828.0,6.12367612]
[1764591501679,0.002,2828.4,2828.1,0.72559411]
[1764591501862,0.002,2828.4,2828.2,0.9079]
[1764591502181,0.002,2828.4,2828.2,1.3773]
[1764591502387,0.002,2828.4,2828.2,2.1586744]
[1764591502589,0.002,2828.4,2828.2,0.6819]
[1764591503288,1e-08,2828.3,2828.0,7.56023578]
[1764591503453,1e-08,2828.3,2828.0,7.07213578]
[1764591503654,1e-08,2828.3,2827.9,7.07238586]
[1764591504121,0.85860401,2828.3,2827.9,7.07238586]
[1764591504727,1e-08,2828.3,2827.9,11.09667879]
[1764591505024,1e-08,2828.3,2827.9,11.75964667]
[1764591505343,0.40550401,2828.3,2827.9,7.07238586]
[1764591505641,0.85860401,2828.3,2827.9,7.07238586]
[1764591507324,0.40550401,2828.3,2827.9,7.07238586]
[1764591508528,1e-08,2828.3,2827.9,7.07238586]
[1764591510228,1e-08,2828.3,2827.9,3.53619293]
[1764591510640,1e-08,2828.3,2827.9,7.07238586]
[1764591511022,0.405504,2827.9,2827.4,7.07352557]
[1764591511316,0.410004,2827.9,2827.4,7.07352557]
[1764591511516,0.501504,2827.8,2827.4,7.07352557]
[1764591511898,0.500704,2827.8,2827.4,7.07352557]
[1764591513233,0.953004,2827.8,2827.4,7.07352557]
[1764591513754,0.0967,2827.5,2827.4,3.5367073]
[1764591514041,0.405504,2827.4,2827.1,0.001]
[1764591514635,0.405504,2827.6,2827.1,0.2]
[1764591514836,0.405504,2827.6,2827.1,0.001]
[1764591515031,0.4523,2827.6,2827.1,0.001]
[1764591515598,0.405504,2827.5,2827.1,0.001]
[1764591515902,0.502204,2827.2,2827.1,0.001]
[1764591516302,1.3996818,2827.2,2827.1,0.001]
[1764591516511,1.49957973,2827.2,2827.1,0.001]
[1764591517143,1.3996818,2827.2,2827.1,0.001]
[1764591517346,0.502204,2827.2,2827.1,0.001]
[1764591518748,1.05080193,2827.2,2827.1,0.001]
[1764591519437,4.5878704,2827.2,2827.1,0.001]
[1764591519937,17.5776774,2827.2,2827.1,0.001]
[1764591520147,19.7117397,2827.2,2827.1,0.001]
[1764591520433,14.5233937,2827.2,2827.1,0.001]
[1764591520630,10.98632523,2827.2,2827.1,0.001]
[1764591520829,3.18486423,2827.2,2827.1,0.001]
[1764591521036,6.7839614,2827.2,2827.1,0.001]
[1764591521414,3.57279087,2827.2,2827.1,0.001]
[1764591521617,3.24689293,2827.2,2827.1,0.001]
[1764591521828,0.82810193,2827.2,2827.1,0.001]
[1764591522725,0.60210193,2827.2,2827.1,0.001]
[1764591522951,1.24199451,2827.2,2827.1,0.001]
[1764591523450,0.82810193,2827.2,2827.1,0.001]
[1764591524548,0.728204,2827.2,2827.1,0.001]
[1764591524930,0.405504,2827.2,2827.1,0.001]
[1764591525126,0.502204,2827.2,2827.1,0.001]
[1764591525331,0.60210193,2827.2,2827.1,0.001]
[1764591526954,1.05080193,2827.2,2827.1,0.001]
[1764591527343,0.60210193,2827.2,2827.1,0.001]
[1764591527652,0.405504,2827.2,2827.1,0.5]
[1764591528647,0.405504,2827.2,2827.1,4.03719359]
[1764591528855,0.405504,2827.2,2827.1,4.70349359]
[1764591529671,0.405504,2827.2,2827.1,4.03719359]
[1764591530254,0.95770193,2827.2,2827.1,0.001]
[1764591530550,4.5914704,2827.2,2827.1,0.001]
[1764591530745,5.42691241,2827.2,2827.1,0.001]
[1764591531254,5.67834307,2827.2,2827.1,0.001]
[1764591534029,2.1412746,2827.2,2827.1,0.001]
[1764591534561,2.21574188,2827.2,2827.1,0.001]
[1764591534859,2.21494188,2827.2,2827.1,0.001]
[1764591536562,2.11504394,2827.2,2827.1,0.001]
[1764591537164,5.65211241,2827.2,2827.1,0.001]
[1764591537657,2.11504394,2827.2,2827.1,0.001]
[1764591538065,1.18290193,2827.2,2827.1,0.001]
[1764591538355,0.95690193,2827.2,2827.1,0.001]
[1764591538738,1.28279987,2827.2,2827.1,0.001]
[1764591540169,0.60449987,2827.2,2827.1,0.474]
[1764591540338,0.73060193,2827.2,2827.1,0.474]
[1764591540539,0.73060193,2827.2,2827.1,4.01119359]
[1764591540741,0.09989793,2827.3,2827.1,7.54838718]
[1764591540956,0.0972,2827.8,2827.5,0.473]
[1764591541160,0.226,2827.7,2827.5,0.473]
[1764591541334,0.0972,2827.8,2827.5,0.473]
[1764591541335,0.002,2827.8,2827.5,0.473]
[1764591541658,0.002,2827.8,2827.7,0.473]
[1764591541858,0.228,2827.8,2827.7,0.473]
[1764591542331,0.6803,2827.8,2827.2,0.4972]
[1764591542531,0.6803,2827.8,2827.4,7.07363654]
[1764591542942,0.405504,2827.7,2827.4,7.57083654]
[1764591543144,0.405504,2827.7,2827.5,0.4972]
[1764591543466,0.002,2827.8,2827.6,0.473]
[1764591543662,0.002,2827.8,2827.7,0.473]
[1764591544034,0.002,2827.8,2827.7,0.9702]
[1764591544348,0.407504,2827.8,2827.4,3.53681827]
[1764591544649,0.407504,2827.8,2827.5,0.4972]
[1764591544851,0.4523,2827.6,2827.1,0.001]
[1764591545032,0.405504,2827.3,2827.2,3.53706847]
[1764591545432,0.50740193,2827.8,2827.2,8.04433694]
[1764591545633,0.50740193,2827.8,2827.3,0.9702]
[1764591545834,0.50740193,2827.8,2827.7,0.473]
[1764591546038,0.002,2827.8,2827.7,0.473]
[1764591546347,0.002,2827.8,2827.7,0.9702]
[1764591546664,0.002,2827.8,2827.7,4.50664304]
[1764591557943,0.0012,2827.8,2827.7,4.50664304]
[1764591558146,0.0012,2827.8,2827.7,5.31096321]
[1764591559670,0.0012,2827.8,2827.7,4.81376321]
[1764591559976,0.0012,2827.8,2827.7,4.50664304]
[1764591560174,0.0979,2827.8,2827.3,1.32163369]
[1764591560378,0.60979987,2827.7,2827.2,7.07413694]
[1764591560771,1.06209987,2827.7,2827.2,7.07413694]
[1764591560971,0.60979987,2827.7,2827.2,7.07413694]
[1764591561296,0.60979987,2827.7,2827.2,7.57133694]
[1764591562288,0.60979987,2827.7,2827.2,11.10840541]
[1764591562491,0.0012,2827.8,2827.6,0.473]
[1764591562694,0.0012,2827.8,2827.2,8.22767748]
[1764591562695,0.09989793,2827.7,2827.2,7.07413694]
[1764591563200,0.0967,2827.3,2827.2,3.53706847]
[1764591563404,0.502204,2827.3,2827.2,3.53706847]
[1764591563724,0.405504,2827.2,2827.1,3.53816634]
[1764591564228,0.09989793,2827.5,2827.1,3.53816634]
[1764591564400,0.09989793,2827.5,2827.1,0.001]
[1764591564701,0.19659793,2827.2,2827.1,0.001]
[1764591568208,0.0012,2827.8,2827.1,0.6525]
[1764591568381,0.0012,2827.8,2827.4,7.07363654]
[1764591568582,0.405504,2827.7,2827.4,7.07363654]
[1764591568899,0.0967,2827.5,2827.3,3.53693071]
[1764591569098,0.0967,2827.4,2827.3,3.53693071]
[1764591569798,0.19979587,2827.6,2827.3,3.99713071]
[1764591570200,0.19979587,2827.6,2827.3,7.53407408]
[1764591570399,0.19979587,2827.6,2827.3,3.99713071]
[1764591570909,0.19979587,2827.6,2827.2,3.53701379]
[1764591571208,0.19979587,2827.6,2827.1,0.6674]
[1764591571209,0.405504,2827.5,2827.1,3.72949004]
[1764591571415,0.405504,2827.5,2827.1,7.07538363]
[1764591571733,0.405504,2827.5,2827.1,7.26668363]
[1764591571915,0.405504,2827.5,2827.2,0.4751]
[1764591572705,0.405504,2827.5,2827.4,0.4602]
[1764591573485,0.0012,2827.8,2827.4,0.9353]
[1764591573685,0.406704,2827.8,2827.4,0.9353]
[1764591573904,0.406704,2827.8,2827.4,0.4602]
[1764591574105,0.406704,2827.8,2827.4,0.9353]
[1764591574617,0.406704,2827.8,2827.6,3.53656811]
[1764591574985,0.406704,2827.8,2827.6,7.07313622]
[1764591575187,0.406704,2827.8,2827.5,3.53665445]
[1764591575382,0.854204,2827.6,2827.5,3.53665445]
[1764591576723,0.405504,2827.5,2827.2,7.07412616]
[1764591576905,0.405504,2827.5,2827.3,0.77415262]
[1764591577104,0.507004,2827.8,2827.3,0.77415262]
[1764591577305,0.406704,2827.8,2827.7,0.4602]
[1764591578502,0.406704,2827.8,2827.7,0.9353]
[1764591578695,0.406704,2827.8,2827.7,4.47174304]
[1764591578900,0.406704,2827.8,2827.7,4.79747246]
[1764591579122,0.406704,2827.8,2827.7,3.99664304]
[1764591579820,0.406704,2827.8,2827.7,4.47174304]
[1764591586833,0.405904,2827.8,2827.7,4.47174304]
[1764591587131,0.0004,2827.8,2827.7,4.47174304]
[1764591595339,0.0004,2827.8,2827.7,3.99664304]
[1764591595713,0.0004,2827.8,2827.7,4.77266246]
[1764591596214,0.0004,2827.8,2827.7,5.25126246]